[Event "45th FIDE Womens Olympiad 2024"]
[Site "Budapest"]
[Date "2024.09.11"]
[Round "1.47"]
[White "La Fleur, Zara"]
[Black "Sargsyan, Anna M."]
[Result "0-1"]
[ECO "B13"]
[WhiteElo "1773"]
[BlackElo "2364"]
[Annotator "ChessBase"]
[PlyCount "76"]
[EventDate "2024.09.05"]
[EventType "team-tourn"]
[EventCountry "HUN"]
[SourceTitle "playchess.com"]
[Source "ChessBase"]
[SourceQuality "1"]
[WhiteTeam "Trinidad & Tobago"]
[BlackTeam "Armenia"]
[BlackTeamCountry "ARM"]
[TimeControl "40/5400+30:1800+30"]

1. e4 c6 2. d4 d5 3. exd5 cxd5 4. Bd3 Nc6 5. c3 Nf6 6. Bf4 g6 7. Nf3 Bg7 8. O-O O-O 9. Nbd2 Bf5 10. Qc2 Bxd3 11. Qxd3 Rc8 12. Rfe1 Re8 13. h3 Qb6 14. Rab1 Nh5 15. Bh2 Bh6 16. Ne5 Nxe5 17. Rxe5 e6 18. Nb3 Nf6 19. Nc5 Qc6 20. Ree1 b6 21. Nb3 a5 22. Nd2 b5 23. Nb3 a4 24. Nc5 Bf8 25. Qf3 Bxc5 26. Qxf6 Be7 27. Qe5 a3 28. Re3 b4 29. Bf4 axb2 30. cxb4 Qc2 31. Ree1 Bxb4 32. Red1 Bf8 33. Qe3 Bg7 34. Kh2 Rc3 35. Qe1 Rec8 36. Rd2 Qf5 37. Be3 Rc1 38. Rd1 Qxb1 0-1

[Event "45th FIDE Womens Olympiad 2024"]
[Site "Budapest"]
[Date "2024.09.11"]
[Round "1.48"]
[White "Gaboyan, Susanna"]
[Black "James, Shemilah"]
[Result "1-0"]
[ECO "A07"]
[WhiteElo "2180"]
[BlackElo "1774"]
[Annotator "ChessBase"]
[PlyCount "79"]
[EventDate "2024.09.05"]
[EventType "team-tourn"]
[EventCountry "HUN"]
[SourceTitle "playchess.com"]
[Source "ChessBase"]
[SourceQuality "1"]
[WhiteTeam "Armenia"]
[BlackTeam "Trinidad & Tobago"]
[WhiteTeamCountry "ARM"]
[TimeControl "40/5400+30:1800+30"]

1. Nf3 d5 2. g3 Nf6 3. Bg2 c6 4. O-O Bg4 5. d3 e6 6. Nbd2 Bc5 7. e4 O-O 8. c3 h6 9. e5 Nfd7 10. Re1 Bb6 11. Nf1 c5 12. h3 Bh5 13. g4 Bg6 14. Ng3 Nc6 15. h4 Qc7 16. h5 Bh7 17. g5 hxg5 18. Bxg5 Rfe8 19. h6 f6 20. exf6 gxf6 21. Bh4 Qf4 22. Qd2 Qxd2 23. Nxd2 Bxd3 24. Nh5 Kf7 25. Bh3 f5 26. Nf3 Bd8 27. Ng7 Rg8 28. Bxd8 Raxd8 29. Ng5+ Kf6 30. N5xe6 Rxg7+ 31. Nxg7 Nde5 32. Bg2 Rh8 33. Nh5+ Kg5 34. Ng7 Rxh6 35. Bxd5 Rg6 36. Ne6+ Kf6+ 37. Kh1 Rh6+ 38. Kg2 Rg6+ 39. Kh3 Rh6+ 40. Kg3 1-0

[Event "45th FIDE Womens Olympiad 2024"]
[Site "Budapest"]
[Date "2024.09.11"]
[Round "1.49"]
[White "Salimova, Nurgyul"]
[Black "Charinda, Kudzanayi"]
[Result "1-0"]
[ECO "D03"]
[WhiteElo "2412"]
[BlackElo "1854"]
[Annotator "ChessBase"]
[PlyCount "87"]
[EventDate "2024.09.05"]
[EventType "team-tourn"]
[EventCountry "HUN"]
[SourceTitle "playchess.com"]
[Source "ChessBase"]
[SourceQuality "1"]
[WhiteTeam "Bulgaria"]
[BlackTeam "Zimbabwe"]
[WhiteTeamCountry "BUL"]
[BlackTeamCountry "ZIM"]
[TimeControl "40/5400+30:1800+30"]

1. d4 Nf6 2. Nf3 e6 3. Bg5 d5 4. e3 Be7 5. Nbd2 Nbd7 6. Bd3 b6 7. a4 a5 8. c3 Bb7 9. Qc2 h6 10. Bh4 Qc8 11. O-O Ba6 12. Bxa6 Rxa6 13. Rae1 O-O 14. Ne5 c5 15. f4 Ra7 16. Re2 Nb8 17. g4 Nc6 18. Qb1 Nxe5 19. fxe5 Ne4 20. Bxe7 Nxd2 21. Rxd2 Rxe7 22. Rg2 Qe8 23. h4 f6 24. exf6 Rxf6 25. Rxf6 gxf6 26. Qf1 Kg7 27. g5 fxg5 28. hxg5 Qf7 29. gxh6+ Kh8 30. Qxf7 Rxf7 31. Rg6 Re7 32. Kf2 Kh7 33. Rf6 cxd4 34. exd4 e5 35. Ke3 exd4+ 36. Kxd4 Re4+ 37. Kxd5 Rxa4 38. Rxb6 Rh4 39. c4 Rh5+ 40. Kc6 Rxh6+ 41. Kb7 Rh4 42. c5 Rc4 43. c6 Rc2 44. c7 1-0

[Event "45th FIDE Womens Olympiad 2024"]
[Site "Budapest"]
[Date "2024.09.11"]
[Round "1.50"]
[White "Makwena, Christine"]
[Black "Radeva, Viktoria"]
[Result "0-1"]
[ECO "C00"]
[WhiteElo "1860"]
[BlackElo "2297"]
[Annotator "ChessBase"]
[PlyCount "124"]
[EventDate "2024.09.05"]
[EventType "team-tourn"]
[EventCountry "HUN"]
[SourceTitle "playchess.com"]
[Source "ChessBase"]
[SourceQuality "1"]
[WhiteTeam "Zimbabwe"]
[BlackTeam "Bulgaria"]
[WhiteTeamCountry "ZIM"]
[BlackTeamCountry "BUL"]
[TimeControl "40/5400+30:1800+30"]

1. e4 e6 2. d3 d5 3. Nd2 Nc6 4. Ngf3 Nf6 5. g3 dxe4 6. dxe4 Bc5 7. Bg2 e5 8. O-O a5 9. c3 Qd3 10. Ne1 Qd6 11. Qc2 Be6 12. Nb3 Ba7 13. Nf3 a4 14. Nbd2 O-O 15. Ng5 Rfd8 16. Nxe6 Qxe6 17. h3 h6 18. Re1 b5 19. Nf1 Na5 20. Be3 c6 21. Red1 Rxd1 22. Qxd1 Nc4 23. Bxa7 Rxa7 24. Qe2 Qe7 25. Rd1 Rd7 26. Rxd7 Nxd7 27. Ne3 Nxe3 28. Qxe3 Qd6 29. Qe2 Nc5 30. Bf1 Kf8 31. Kg2 Qg6 32. f3 Qd6 33. Qc2 Ke7 34. Qe2 g5 35. Qe3 Ne6 36. Be2 h5 37. Qa7+ Kf8 38. Qe3 Qc5 39. Qxc5+ Nxc5 40. Kf2 Ke7 41. Ke3 Ne6 42. Kf2 h4 43. Bf1 Kd6 44. Kg2 Kc5 45. a3 Nf8 46. f4 exf4 47. gxf4 gxf4 48. Kf3 Ng6 49. Kg4 Kd6 50. Kf5 f3 51. Kg4 f2 52. Kf3 Ke5 53. Kxf2 Kf4 54. c4 bxc4 55. Bxc4 Ne5 56. Ba6 Kxe4 57. Ke2 f5 58. Kd2 Kd4 59. Be2 f4 60. Bd1 f3 61. Bxa4 Nc4+ 62. Ke1 Ke5 0-1

[Event "45th FIDE Womens Olympiad 2024"]
[Site "Budapest"]
[Date "2024.09.11"]
[Round "1.51"]
[White "Krasteva, Beloslava"]
[Black "Shaba, Linda Dalitso"]
[Result "1-0"]
[ECO "D02"]
[WhiteElo "2295"]
[BlackElo "1831"]
[Annotator "ChessBase"]
[PlyCount "93"]
[EventDate "2024.09.05"]
[EventType "team-tourn"]
[EventCountry "HUN"]
[SourceTitle "playchess.com"]
[Source "ChessBase"]
[SourceQuality "1"]
[WhiteTeam "Bulgaria"]
[BlackTeam "Zimbabwe"]
[WhiteTeamCountry "BUL"]
[BlackTeamCountry "ZIM"]
[TimeControl "40/5400+30:1800+30"]

1. d4 e6 2. Bf4 d5 3. Nf3 Nf6 4. e3 c5 5. Nbd2 Nc6 6. c3 Be7 7. Bd3 Bd7 8. Ne5 cxd4 9. exd4 Qb6 10. Rb1 Rc8 11. Qf3 Na5 12. g4 Bb5 13. Bc2 Nc6 14. a4 Ba6 15. Be3 Qc7 16. Nxf7 Kxf7 17. g5 Rcf8 18. h4 Ke8 19. gxf6 Bxf6 20. Qg4 Nd8 21. Bxh7 Qe7 22. Bg6+ Kd7 23. h5 Nf7 24. Nf3 Nh6 25. Qh3 b6 26. Kd2 Bc8 27. Rhe1 Kc7 28. Qg3+ Kb7 29. a5 b5 30. Bf4 Qd8 31. Ra1 a6 32. Bd6 Rfg8 33. Be5 Rf8 34. Bd6 Rfg8 35. b3 Qd7 36. Bc5 Qc7 37. Ne5 Be7 38. Nf7 Qxg3 39. fxg3 Nxf7 40. Bxe7 Nh6 41. Bd6 Kc6 42. Bf4 Rf8 43. c4 Nf5 44. cxd5+ exd5 45. Rac1+ Kb7 46. Bxf5 Bxf5 47. Re7+ 1-0

[Event "45th FIDE Womens Olympiad 2024"]
[Site "Budapest"]
[Date "2024.09.11"]
[Round "1.52"]
[White "Wakuruwarewa, Colletta"]
[Black "Peycheva, Gergana"]
[Result "0-1"]
[ECO "D02"]
[WhiteElo "1814"]
[BlackElo "2248"]
[Annotator "ChessBase"]
[PlyCount "72"]
[EventDate "2024.09.05"]
[EventType "team-tourn"]
[EventCountry "HUN"]
[SourceTitle "playchess.com"]
[Source "ChessBase"]
[SourceQuality "1"]
[WhiteTeam "Zimbabwe"]
[BlackTeam "Bulgaria"]
[WhiteTeamCountry "ZIM"]
[BlackTeamCountry "BUL"]
[TimeControl "40/5400+30:1800+30"]

1. d4 d5 2. Nf3 e6 3. g3 Nf6 4. Bg2 Be7 5. O-O O-O 6. b3 a5 7. c4 c6 8. Nc3 b6 9. Qc2 Bb7 10. Bb2 Na6 11. a3 Rc8 12. Ne5 c5 13. e3 Qc7 14. f3 Rfd8 15. Rad1 cxd4 16. exd4 dxc4 17. Nxc4 Nd5 18. Nxd5 Bxd5 19. Rc1 b5 20. Ne3 Qxc2 21. Rxc2 Rxc2 22. Nxc2 Bxb3 23. Ne3 b4 24. Ra1 bxa3 25. Bxa3 Bf6 26. Bb2 a4 27. Bf1 Nc7 28. Rc1 Nd5 29. Kf2 h5 30. Bc4 Rb8 31. Ba1 Rc8 32. Bb2 Nxe3 33. Bxb3 Rxc1 34. Bxc1 Ng4+ 35. Ke2 axb3 36. fxg4 Bxd4 0-1

[Event "45th FIDE Womens Olympiad 2024"]
[Site "Budapest"]
[Date "2024.09.11"]
[Round "1.53"]
[White "Sakai, Azumi"]
[Black "Daulyte-Cornette, Deimante"]
[Result "0-1"]
[ECO "E12"]
[WhiteElo "1871"]
[BlackElo "2369"]
[Annotator "ChessBase"]
[PlyCount "90"]
[EventDate "2024.09.05"]
[EventType "team-tourn"]
[EventCountry "HUN"]
[SourceTitle "playchess.com"]
[Source "ChessBase"]
[SourceQuality "1"]
[WhiteTeam "Japan"]
[BlackTeam "France"]
[WhiteTeamCountry "JPN"]
[BlackTeamCountry "FRA"]
[TimeControl "40/5400+30:1800+30"]

1. d4 Nf6 2. c4 e6 3. Nf3 b6 4. a3 Ba6 5. Qc2 Bb7 6. Nc3 c5 7. d5 exd5 8. cxd5 Nxd5 9. g3 Nxc3 10. Qxc3 d5 11. Bg5 d4 12. Qc2 Be7 13. Bxe7 Qxe7 14. Bg2 Be4 15. Qa4+ Bc6 16. Qc2 O-O 17. O-O Be4 18. Qc4 Nc6 19. b4 cxb4 20. axb4 Nxb4 21. Ra4 a5 22. Qxd4 b5 23. Rxb4 Qxb4 24. Qxb4 axb4 25. Nd4 Bxg2 26. Kxg2 Rfc8 27. Rb1 Rc4 28. e3 Ra2 29. h3 h5 30. g4 h4 31. Kf3 g6 32. g5 Kf8 33. Nxb5 Ra5 34. Nd6 Rc6 35. Ne4 Rb6 36. Ke2 b3 37. Kd3 b2 38. Kc3 Ra1 39. Nd2 Rxb1 40. Nxb1 f6 41. Kc2 fxg5 42. f3 Rf6 43. Nd2 g4 44. Ne4 Rxf3 45. hxg4 h3 0-1

[Event "45th FIDE Womens Olympiad 2024"]
[Site "Budapest"]
[Date "2024.09.11"]
[Round "1.54"]
[White "Milliet, Sophie"]
[Black "Shibata, Misaki"]
[Result "1-0"]
[ECO "D02"]
[WhiteElo "2348"]
[BlackElo "1847"]
[Annotator "ChessBase"]
[PlyCount "79"]
[EventDate "2024.09.05"]
[EventType "team-tourn"]
[EventCountry "HUN"]
[SourceTitle "playchess.com"]
[Source "ChessBase"]
[SourceQuality "1"]
[WhiteTeam "France"]
[BlackTeam "Japan"]
[WhiteTeamCountry "FRA"]
[BlackTeamCountry "JPN"]
[TimeControl "40/5400+30:1800+30"]

1. d4 e6 2. c4 Nf6 3. Nf3 d5 4. g3 Bd6 5. Bg2 O-O 6. O-O h6 7. Nc3 Nc6 8. b3 dxc4 9. bxc4 e5 10. Rb1 Re8 11. dxe5 Nxe5 12. Nxe5 Bxe5 13. Qxd8 Rxd8 14. Nd5 Re8 15. Ba3 Nxd5 16. cxd5 Bd6 17. Bxd6 cxd6 18. e4 b6 19. Rfc1 f5 20. f3 fxe4 21. fxe4 Ba6 22. Rc6 Bd3 23. Re1 Rad8 24. Rc7 a5 25. Rc3 Ba6 26. Rb1 Rb8 27. a4 Re7 28. Rbc1 Kf8 29. Rb3 Reb7 30. Rc6 Ke7 31. Re3 Rd7 32. e5 dxe5 33. Rxe5+ Kd8 34. Ree6 Bd3 35. Rxb6 Rxb6 36. Rxb6 Bc2 37. d6 Ra7 38. Bc6 Kc8 39. Rb2 Bf5 40. Rf2 1-0

[Event "45th FIDE Womens Olympiad 2024"]
[Site "Budapest"]
[Date "2024.09.11"]
[Round "1.55"]
[White "Kinoshita, Kanako"]
[Black "Guichard, Pauline"]
[Result "0-1"]
[ECO "A34"]
[WhiteElo "1822"]
[BlackElo "2374"]
[Annotator "ChessBase"]
[PlyCount "72"]
[EventDate "2024.09.05"]
[EventType "team-tourn"]
[EventCountry "HUN"]
[SourceTitle "playchess.com"]
[Source "ChessBase"]
[SourceQuality "1"]
[WhiteTeam "Japan"]
[BlackTeam "France"]
[WhiteTeamCountry "JPN"]
[BlackTeamCountry "FRA"]
[TimeControl "40/5400+30:1800+30"]

1. c4 c5 2. Nc3 Nf6 3. g3 d5 4. cxd5 Nxd5 5. Bg2 Nc7 6. Nf3 Nc6 7. O-O e5 8. b3 Be7 9. Bb2 O-O 10. Rc1 f6 11. d3 Be6 12. Nd2 Qd7 13. Qc2 Rad8 14. Rfd1 Nd4 15. Qb1 Ncb5 16. Re1 Bg4 17. f3 Bf5 18. e4 Be6 19. Nd1 Nc6 20. Nf2 Nbd4 21. Kh1 b5 22. Ba3 Nb4 23. Bb2 a5 24. Bxd4 Qxd4 25. Re2 Nxd3 26. Rf1 Nxf2+ 27. Rexf2 c4 28. bxc4 bxc4 29. Qc2 Rb8 30. Nb1 c3 31. Qc1 Bc4 32. Rc2 Bd3 33. Rd1 Bxc2 34. Qxc2 Rb2 35. Qc1 c2 36. Rxd4 Rxb1 0-1

[Event "45th FIDE Womens Olympiad 2024"]
[Site "Budapest"]
[Date "2024.09.11"]
[Round "1.56"]
[White "Benmesbah, Natacha"]
[Black "Mitsuyama, Rikka"]
[Result "1-0"]
[ECO "C54"]
[WhiteElo "2258"]
[BlackElo "1738"]
[Annotator "ChessBase"]
[PlyCount "77"]
[EventDate "2024.09.05"]
[EventType "team-tourn"]
[EventCountry "HUN"]
[SourceTitle "playchess.com"]
[Source "ChessBase"]
[SourceQuality "1"]
[WhiteTeam "France"]
[BlackTeam "Japan"]
[WhiteTeamCountry "FRA"]
[BlackTeamCountry "JPN"]
[TimeControl "40/5400+30:1800+30"]

1. e4 e5 2. Nf3 Nc6 3. Bc4 Bc5 4. c3 Nf6 5. d3 O-O 6. Nbd2 d5 7. exd5 Nxd5 8. Ne4 Be7 9. O-O Nb6 10. Bb5 f6 11. a4 Qd5 12. Be3 a6 13. Bxb6 axb5 14. Bxc7 bxa4 15. Rxa4 Be6 16. Rxa8 Rxa8 17. c4 Qd7 18. Bb6 Nb4 19. Bc5 Rd8 20. Bxb4 Bxb4 21. Qb3 Bf8 22. Nc3 Qxd3 23. Qxb7 Bxc4 24. Rc1 Bc5 25. h3 Ba6 26. Qb3+ Bc4 27. Qa4 Qd7 28. Qxc4+ Kh8 29. Qxc5 Rc8 30. Qe3 Qb7 31. Ne4 Rd8 32. Nc5 Qxb2 33. Ne6 Re8 34. Rc7 Qb1+ 35. Qc1 Qb6 36. Nxg7 Rg8 37. Nf5 Qe6 38. Rxh7+ Kxh7 39. Qh6# 1-0

[Event "45th FIDE Womens Olympiad 2024"]
[Site "Budapest"]
[Date "2024.09.11"]
[Round "1.57"]
[White "Park, Sunwoo"]
[Black "Houska, Jovanka"]
[Result "0-1"]
[ECO "B12"]
[WhiteElo "1877"]
[BlackElo "2333"]
[Annotator "ChessBase"]
[PlyCount "80"]
[EventDate "2024.09.05"]
[EventType "team-tourn"]
[EventCountry "HUN"]
[SourceTitle "playchess.com"]
[Source "ChessBase"]
[SourceQuality "1"]
[WhiteTeam "South Korea"]
[BlackTeam "England"]
[WhiteTeamCountry "KOR"]
[BlackTeamCountry "ENG"]
[TimeControl "40/5400+30:1800+30"]

1. e4 c6 2. d4 d5 3. e5 Bf5 4. Nf3 e6 5. Be2 Ne7 6. O-O Ng6 7. Be3 Nd7 8. a4 f6 9. exf6 Qxf6 10. c4 Bd6 11. cxd5 exd5 12. Bg5 Qf7 13. Nh4 Nxh4 14. Bxh4 O-O 15. Nd2 Nf6 16. Qb3 Rae8 17. Bd3 Bc8 18. Bxf6 Qxf6 19. Ne4 Rxe4 20. Bxe4 Qf4 21. Bxd5+ cxd5 22. Qxd5+ Kh8 23. g3 Qf6 24. f4 Rd8 25. Rac1 Be6 26. Qe4 Qf7 27. f5 Bd5 28. Qd3 Be7 29. Rc7 Qf8 30. a5 Bf6 31. Rc5 Bc6 32. Rxc6 bxc6 33. Qf3 Bxd4+ 34. Kg2 Rd5 35. Re1 h6 36. g4 Bxb2 37. Re2 Bf6 38. a6 Qd8 39. Qf2 c5 40. h4 Bxh4 0-1

[Event "45th FIDE Womens Olympiad 2024"]
[Site "Budapest"]
[Date "2024.09.11"]
[Round "1.58"]
[White "Hunt, Harriet V"]
[Black "Khan, Anastasia"]
[Result "1-0"]
[ECO "B31"]
[WhiteElo "2304"]
[BlackElo "1859"]
[Annotator "ChessBase"]
[PlyCount "59"]
[EventDate "2024.09.05"]
[EventType "team-tourn"]
[EventCountry "HUN"]
[SourceTitle "playchess.com"]
[Source "ChessBase"]
[SourceQuality "1"]
[WhiteTeam "England"]
[BlackTeam "South Korea"]
[WhiteTeamCountry "ENG"]
[BlackTeamCountry "KOR"]
[TimeControl "40/5400+30:1800+30"]

1. e4 c5 2. Nf3 Nc6 3. Bb5 g6 4. O-O Bg7 5. Re1 e5 6. Bxc6 bxc6 7. d3 d6 8. Be3 Nf6 9. h3 Nd7 10. Qd2 h6 11. Nc3 Nf8 12. Ne2 Ne6 13. c3 f5 14. exf5 gxf5 15. d4 cxd4 16. cxd4 e4 17. Nh2 d5 18. Nf4 Nxf4 19. Bxf4 Kf7 20. Nf1 Qb6 21. Red1 Ba6 22. Ng3 Kg6 23. Bd6 Qd8 24. Bf4 Bd3 25. Ne2 Qh4 26. Bg3 Qf6 27. Be5 Qg5 28. Nf4+ Kf7 29. Bxg7 Kxg7 30. Ne6+ 1-0

[Event "45th FIDE Womens Olympiad 2024"]
[Site "Budapest"]
[Date "2024.09.11"]
[Round "1.59"]
[White "Kang, Sohyun"]
[Black "Toma, Katarzyna"]
[Result "0-1"]
[ECO "B23"]
[WhiteElo "1726"]
[BlackElo "2184"]
[Annotator "ChessBase"]
[PlyCount "68"]
[EventDate "2024.09.05"]
[EventType "team-tourn"]
[EventCountry "HUN"]
[SourceTitle "playchess.com"]
[Source "ChessBase"]
[SourceQuality "1"]
[WhiteTeam "South Korea"]
[BlackTeam "England"]
[WhiteTeamCountry "KOR"]
[BlackTeamCountry "ENG"]
[TimeControl "40/5400+30:1800+30"]

1. e4 c5 2. Nc3 Nc6 3. Bb5 Nd4 4. Nge2 Nxb5 5. Nxb5 d6 6. O-O Nf6 7. d3 g6 8. f4 Bg7 9. Ng3 O-O 10. f5 Bd7 11. Nc3 b5 12. Bd2 Bc6 13. Qe2 b4 14. Nd1 Nd7 15. c3 Rb8 16. Nf2 Ne5 17. Ng4 bxc3 18. Bxc3 Bb5 19. Nxe5 Bxe5 20. Rf3 Qb6 21. Qe3 Kg7 22. Kh1 f6 23. Ne2 Be8 24. h4 Bf7 25. Nf4 Bxc3 26. bxc3 Qb2 27. Rc1 Qxa2 28. fxg6 hxg6 29. Rg3 Rh8 30. Rg4 Rb1 31. Rxb1 Qxb1+ 32. Kh2 a5 33. Qg3 Rh6 34. h5 Kf8 0-1

[Event "45th FIDE Womens Olympiad 2024"]
[Site "Budapest"]
[Date "2024.09.11"]
[Round "1.60"]
[White "Sivanandan, Bodhana"]
[Black "Cho, Yeonhee"]
[Result "1-0"]
[ECO "C47"]
[WhiteElo "2196"]
[BlackElo "1696"]
[Annotator "ChessBase"]
[PlyCount "83"]
[EventDate "2024.09.05"]
[EventType "team-tourn"]
[EventCountry "HUN"]
[SourceTitle "playchess.com"]
[Source "ChessBase"]
[SourceQuality "1"]
[WhiteTeam "England"]
[BlackTeam "South Korea"]
[WhiteTeamCountry "ENG"]
[BlackTeamCountry "KOR"]
[TimeControl "40/5400+30:1800+30"]

1. e4 e5 2. Nf3 Nc6 3. Nc3 Nf6 4. d4 exd4 5. Nxd4 Bb4 6. Nxc6 bxc6 7. Bd3 d6 8. h3 O-O 9. O-O Re8 10. Qf3 Bxc3 11. bxc3 h6 12. Re1 Bd7 13. Bf4 Be6 14. c4 d5 15. exd5 cxd5 16. cxd5 Bxd5 17. Qg3 Nh5 18. Bxc7 Qd7 19. Qd6 Qxd6 20. Bxd6 Rxe1+ 21. Rxe1 Bxa2 22. Ra1 Bd5 23. Ra5 Nf6 24. Bc5 Bc6 25. f3 Nd7 26. Bxa7 f6 27. Kf2 Ne5 28. Be2 Be8 29. Bb6 Rc8 30. Rc5 Rxc5 31. Bxc5 Bg6 32. Bd1 Nc4 33. Bd4 Na3 34. c3 Nb5 35. Ke3 Nxd4 36. Kxd4 Kf8 37. Kc5 Ke8 38. Kd6 Bd3 39. f4 Kd8 40. Bf3 f5 41. Bd5 Be4 42. c4 1-0

[Event "45th FIDE Womens Olympiad 2024"]
[Site "Budapest"]
[Date "2024.09.11"]
[Round "1.61"]
[White "Yildiz Kadioglu, Betul Cemre"]
[Black "Viana, Valeria"]
[Result "1-0"]
[ECO "E05"]
[WhiteElo "2314"]
[BlackElo "1882"]
[Annotator "ChessBase"]
[PlyCount "57"]
[EventDate "2024.09.05"]
[EventType "team-tourn"]
[EventCountry "HUN"]
[SourceTitle "playchess.com"]
[Source "ChessBase"]
[SourceQuality "1"]
[WhiteTeam "Turkiye"]
[BlackTeam "Honduras"]
[WhiteTeamCountry "TUR"]
[BlackTeamCountry "HON"]
[TimeControl "40/5400+30:1800+30"]

1. d4 Nf6 2. c4 e6 3. g3 d5 4. Bg2 Be7 5. Nf3 O-O 6. O-O dxc4 7. Qa4 a6 8. Qxc4 b5 9. Qc2 Bb7 10. Bd2 Be4 11. Qc1 Qc8 12. Bg5 Nbd7 13. Nbd2 Bb7 14. Qc2 c5 15. Rfc1 cxd4 16. Nxd4 Bxg2 17. Kxg2 Qb7+ 18. Qc6 Qa7 19. N2b3 Ne5 20. Qc7 Qxc7 21. Rxc7 Bd6 22. Rc2 Nd5 23. a4 b4 24. a5 h6 25. Bd2 Nc7 26. Bxb4 Bxb4 27. Rxc7 Bd6 28. Rc2 Rfb8 29. Rac1 1-0

[Event "45th FIDE Womens Olympiad 2024"]
[Site "Budapest"]
[Date "2024.09.11"]
[Round "1.62"]
[White "Torres Hernandez, Leslie Carolin"]
[Black "Ozturk Orenli, Kubra"]
[Result "0-1"]
[ECO "C94"]
[WhiteElo "1891"]
[BlackElo "2262"]
[Annotator "ChessBase"]
[PlyCount "106"]
[EventDate "2024.09.05"]
[EventType "team-tourn"]
[EventCountry "HUN"]
[SourceTitle "playchess.com"]
[Source "ChessBase"]
[SourceQuality "1"]
[WhiteTeam "Honduras"]
[BlackTeam "Turkiye"]
[WhiteTeamCountry "HON"]
[BlackTeamCountry "TUR"]
[TimeControl "40/5400+30:1800+30"]

1. e4 e5 2. Nf3 Nc6 3. Bb5 a6 4. Ba4 Nf6 5. O-O Be7 6. d3 b5 7. Bb3 d6 8. c3 O-O 9. h3 Bb7 10. Re1 Nb8 11. Nbd2 Nbd7 12. Nf1 Re8 13. Ng5 d5 14. exd5 Bxd5 15. Ne3 Bxb3 16. Qxb3 Rf8 17. Nf5 h6 18. Ne4 Nxe4 19. dxe4 Bf6 20. Be3 c5 21. Rad1 Qc7 22. Rd5 Rfd8 23. Red1 c4 24. Qc2 Nf8 25. Qe2 Ne6 26. Qg4 Kh7 27. Qh5 Nf4 28. Bxf4 exf4 29. Nd6 g6 30. Qg4 Bg7 31. Qxf4 Rd7 32. Qd2 Rad8 33. f4 f6 34. h4 h5 35. Qd4 Qc6 36. f5 Bf8 37. fxg6+ Kxg6 38. e5 fxe5 39. Qe4+ Kg7 40. Nf5+ Kg8 41. Ne3 Bc5 42. Kh1 Bxe3 43. Qxe3 Rxd5 44. Qg5+ Kh8 45. Qxh5+ Kg7 46. Qg5+ Qg6 47. Qe7+ Kh6 48. Rxd5 Rxd5 49. Qf8+ Qg7 50. Qf3 Rd6 51. g4 Qd7 52. Qe3+ Kh7 53. Qe4+ Kg8 0-1

[Event "45th FIDE Womens Olympiad 2024"]
[Site "Budapest"]
[Date "2024.09.11"]
[Round "1.63"]
[White "Aydin, Gulenay"]
[Black "Cruz, Bitia"]
[Result "1-0"]
[ECO "B22"]
[WhiteElo "2202"]
[BlackElo "1736"]
[Annotator "ChessBase"]
[PlyCount "65"]
[EventDate "2024.09.05"]
[EventType "team-tourn"]
[EventCountry "HUN"]
[SourceTitle "playchess.com"]
[Source "ChessBase"]
[SourceQuality "1"]
[WhiteTeam "Turkiye"]
[BlackTeam "Honduras"]
[WhiteTeamCountry "TUR"]
[BlackTeamCountry "HON"]
[TimeControl "40/5400+30:1800+30"]

1. e4 c5 2. c3 d5 3. exd5 Nf6 4. Bb5+ Nbd7 5. Qb3 a6 6. Be2 b5 7. d3 Bb7 8. c4 g6 9. Nf3 Bg7 10. O-O O-O 11. Nc3 b4 12. Ne4 a5 13. Rb1 e6 14. dxe6 fxe6 15. Ng3 Ng4 16. Ng5 Nxf2 17. Be3 Qe7 18. Rxf2 Rxf2 19. Kxf2 Rf8+ 20. Kg1 Bh6 21. h4 Bg7 22. Bf3 Ne5 23. Bxb7 Qxb7 24. N3e4 Qe7 25. Bxc5 Qd7 26. Bxf8 Qd4+ 27. Kh1 Bxf8 28. Nxe6 Qe3 29. Nxf8 Kxf8 30. Rf1+ Kg7 31. Qd1 Nxd3 32. Rf3 Qxe4 33. Qxd3 1-0

[Event "45th FIDE Womens Olympiad 2024"]
[Site "Budapest"]
[Date "2024.09.11"]
[Round "1.64"]
[White "Oseguera, Suhey"]
[Black "Isgenderova, Hayale"]
[Result "0-1"]
[ECO "E12"]
[WhiteElo "1590"]
[BlackElo "2124"]
[Annotator "NA"]
[PlyCount "66"]
[EventDate "2024.09.05"]
[EventType "team-tourn"]
[EventCountry "HUN"]
[SourceTitle "playchess.com"]
[Source "ChessBase"]
[SourceQuality "1"]
[WhiteTeam "Honduras"]
[BlackTeam "Turkiye"]
[WhiteTeamCountry "HON"]
[BlackTeamCountry "TUR"]
[TimeControl "40/5400+30:1800+30"]

1. Nf3 Nf6 2. c4 e6 3. Nc3 d5 4. d4 b6 5. Bg5 Be7 6. e3 O-O 7. Bd3 Bb7 8. O-O Ne4 9. Bxe7 Qxe7 10. Qc2 f5 11. cxd5 exd5 12. Rac1 Nd7 13. Qb3 c6 14. Ne2 Kh8 15. Qc2 c5 16. Nc3 Rac8 17. Rfe1 g5 18. h3 Rg8 19. Nd2 g4 20. hxg4 Qh4 21. Ndxe4 dxe4 22. Bf1 Nf6 23. g3 Qxg4 24. Qe2 Qg7 25. Bh3 cxd4 26. Nb5 Ba6 27. exd4 Rxc1 28. Rxc1 Qh6 29. Rc6 Qxh3 30. Rxf6 e3 31. a4 exf2+ 32. Kxf2 Qxg3+ 33. Kf1 Qg1# 0-1

[Event "45th FIDE Womens Olympiad 2024"]
[Site "Budapest"]
[Date "2024.09.11"]
[Round "1.65"]
[White "Ravelomanana, Sabine"]
[Black "Roebers, Eline"]
[Result "0-1"]
[ECO "A41"]
[WhiteElo "1926"]
[BlackElo "2340"]
[Annotator "ChessBase"]
[PlyCount "66"]
[EventDate "2024.09.05"]
[EventType "team-tourn"]
[EventCountry "HUN"]
[SourceTitle "playchess.com"]
[Source "ChessBase"]
[SourceQuality "1"]
[WhiteTeam "Madagascar"]
[BlackTeam "Netherlands"]
[WhiteTeamCountry "MAD"]
[BlackTeamCountry "NED"]
[TimeControl "40/5400+30:1800+30"]

1. d4 d6 2. Bf4 c5 3. e3 Qb6 4. Na3 Qxb2 5. Nb5 Qb4+ 6. Qd2 Na6 7. dxc5 Qxc5 8. Nf3 e5 9. Bg3 Nf6 10. Nc3 Nc7 11. Bd3 Bd7 12. O-O Bc6 13. e4 Be7 14. Nh4 g6 15. Kh1 Nh5 16. Rab1 O-O 17. Rb3 b5 18. Nd1 Nxg3+ 19. hxg3 d5 20. Qa5 dxe4 21. Rc3 Qd6 22. Bxe4 Bxe4 23. Qxc7 Qxc7 24. Rxc7 Bd6 25. Rd7 Rfd8 26. Rxd8+ Rxd8 27. Ne3 f5 28. f3 Bc6 29. Rd1 Be7 30. Kh2 Rxd1 31. Nxd1 Bd7 32. Nc3 g5 33. Nxb5 gxh4 0-1